[Event "2e tournoi de GMI du Barreau de Paris"]
[Site "Paris, France"]
[Date "2021.06.22"]
[Round "7.2"]
[White "Bellahcene, Bilel"]
[Black "Travadon, Loic"]
[Result "0-1"]
[TimeControl "90+30"]
[WhiteElo "2499"]
[BlackElo "2415"]

1. d4 {[%clk 01:20:14]} {[%emt 00:10:44]} Nf6 {[%clk 01:30:54]} {[%emt
00:00:06]} 2. Nf3 {[%clk 01:20:34]} {[%emt 00:00:09]} g6 {[%clk 01:31:20]}
{[%emt 00:00:06]} 3. c4 {[%clk 01:20:43]} {[%emt 00:00:21]} Bg7 {[%clk
01:31:45]} {[%emt 00:00:05]} 4. Nc3 {[%clk 01:21:10]} {[%emt 00:00:03]} d6
{[%clk 01:32:08]} {[%emt 00:00:06]} 5. h3 {[%clk 01:21:34]} {[%emt 00:00:06]}
O-O {[%clk 01:32:22]} {[%emt 00:00:17]} 6. e4 {[%clk 01:22:00]} {[%emt
00:00:03]} c5 {[%clk 01:32:10]} {[%emt 00:00:42]} 7. Be3 {[%clk 01:21:41]}
{[%emt 00:00:50]} Na6 {[%clk 01:32:01]} {[%emt 00:00:39]} 8. Be2 {[%clk
01:17:52]} {[%emt 00:04:18]} cxd4 {[%clk 01:32:07]} {[%emt 00:00:24]} 9. Nxd4
{[%clk 01:18:15]} {[%emt 00:00:07]} Nc5 {[%clk 01:32:06]} {[%emt 00:00:31]} 10.
Qc2 {[%clk 01:17:49]} {[%emt 00:00:56]} b6 {[%clk 01:31:44]} {[%emt 00:00:52]}
11. Bf3 {[%clk 01:14:52]} {[%emt 00:03:27]} Bb7 {[%clk 01:31:34]} {[%emt
00:00:41]} 12. O-O {[%clk 01:14:36]} {[%emt 00:00:46]} e5 {[%clk 01:31:32]}
{[%emt 00:00:32]} 13. Nde2 {[%clk 01:14:19]} {[%emt 00:00:47]} Ne8 {[%clk
01:31:10]} {[%emt 00:00:52]} 14. Rad1 {[%clk 01:12:26]} {[%emt 00:02:23]} Ne6
{[%clk 01:30:36]} {[%emt 00:01:04]} 15. Rd2 {[%clk 01:11:40]} {[%emt 00:01:16]}
Ng5 {[%clk 01:30:43]} {[%emt 00:00:23]} 16. Bxg5 {[%clk 01:10:16]} {[%emt
00:01:55]} Qxg5 {[%clk 01:31:07]} {[%emt 00:00:06]} 17. Nb5 {[%clk 01:08:32]}
{[%emt 00:02:13]} Bc8 {[%clk 01:29:13]} {[%emt 00:02:24]} 18. Kh1 {[%clk
01:07:22]} {[%emt 00:01:40]} Be6 {[%clk 01:29:34]} {[%emt 00:00:09]} 19. Rfd1
{[%clk 01:06:29]} {[%emt 00:01:22]} a6 {[%clk 01:29:25]} {[%emt 00:00:40]} 20.
Nxd6 {[%clk 01:06:33]} {[%emt 00:00:26]} Nxd6 {[%clk 01:29:50]} {[%emt
00:00:05]} 21. Rxd6 {[%clk 01:07:00]} {[%emt 00:00:04]} Rfc8 {[%clk 01:29:50]}
{[%emt 00:00:29]} 22. Rxb6 {[%clk 01:01:06]} {[%emt 00:06:24]} Bf8 {[%clk
01:26:28]} {[%emt 00:03:52]} 23. Rb3 {[%clk 00:55:49]} {[%emt 00:05:47]} Qh4
{[%clk 01:24:20]} {[%emt 00:02:37]} 24. Ng3 {[%clk 00:47:20]} {[%emt 00:08:58]}
Rxc4 {[%clk 01:24:30]} {[%emt 00:00:21]} 25. Rc3 {[%clk 00:46:09]} {[%emt
00:01:41]} Rac8 {[%clk 01:23:54]} {[%emt 00:01:06]} 26. Kh2 {[%clk 00:33:59]}
{[%emt 00:12:40]} Rxc3 {[%clk 01:24:03]} {[%emt 00:00:21]} 27. bxc3 {[%clk
00:34:26]} {[%emt 00:00:03]} h5 {[%clk 01:23:53]} {[%emt 00:00:40]} 28. Qd2
{[%clk 00:27:08]} {[%emt 00:07:48]} Bc5 {[%clk 01:23:03]} {[%emt 00:01:20]} 29.
Nh1 {[%clk 00:22:19]} {[%emt 00:05:19]} a5 {[%clk 01:22:53]} {[%emt 00:00:40]}
30. a4 {[%clk 00:22:30]} {[%emt 00:00:19]} Qe7 {[%clk 01:22:53]} {[%emt
00:00:29]} 31. Be2 {[%clk 00:22:32]} {[%emt 00:00:28]} Bb3 {[%clk 01:22:47]}
{[%emt 00:00:36]} 32. Ra1 {[%clk 00:22:51]} {[%emt 00:00:11]} Rd8 {[%clk
01:22:36]} {[%emt 00:00:41]} 33. Qb2 {[%clk 00:21:38]} {[%emt 00:01:43]} Be6
{[%clk 01:22:59]} {[%emt 00:00:06]} 34. Rd1 {[%clk 00:21:44]} {[%emt 00:00:24]}
Rxd1 {[%clk 01:22:18]} {[%emt 00:01:12]} 35. Bxd1 {[%clk 00:22:13]} Qd7 {[%clk
01:21:53]} {[%emt 00:00:55]} 36. Qc2 {[%clk 00:22:07]} {[%emt 00:00:36]} Bc4
{[%clk 01:21:39]} {[%emt 00:00:44]} 37. h4 {[%clk 00:20:50]} {[%emt 00:01:46]}
Qe7 {[%clk 01:20:35]} {[%emt 00:01:33]} 38. g3 {[%clk 00:19:12]} {[%emt
00:02:09]} Qe6 {[%clk 01:20:50]} {[%emt 00:00:15]} 39. Kg2 {[%clk 00:16:24]}
{[%emt 00:03:18]} Qa6 {[%clk 01:21:15]} {[%emt 00:00:06]} 40. Qd2 {[%clk
00:15:12]} {[%emt 00:01:42]} Kg7 {[%clk 01:20:47]} {[%emt 00:00:58]} 41. g4
{[%clk 00:13:29]} {[%emt 00:02:14]} hxg4 {[%clk 01:20:49]} {[%emt 00:00:27]} 42.
Ng3 {[%clk 00:13:37]} {[%emt 00:00:21]} Qf6 {[%clk 01:20:50]} {[%emt 00:00:30]}
43. Bxg4 {[%clk 00:12:38]} {[%emt 00:01:30]} Qxh4 {[%clk 01:21:11]} {[%emt
00:00:09]} 44. Bc8 {[%clk 00:11:30]} {[%emt 00:01:38]} Qe7 {[%clk 01:20:25]}
{[%emt 00:01:14]} 45. Bg4 {[%clk 00:10:55]} {[%emt 00:01:06]} Bb3 {[%clk
01:20:34]} {[%emt 00:00:21]} 46. Bd1 {[%clk 00:11:07]} {[%emt 00:00:18]} Be6
{[%clk 01:20:58]} {[%emt 00:00:06]} 47. Qd3 {[%clk 00:10:13]} {[%emt 00:01:24]}
Qh4 {[%clk 01:21:01]} {[%emt 00:00:27]} 48. Qf3 {[%clk 00:10:08]} {[%emt
00:00:35]} Qf6 {[%clk 01:21:01]} {[%emt 00:00:30]} 49. Qxf6+ {[%clk 00:10:27]}
{[%emt 00:00:11]} Kxf6 {[%clk 01:21:29]} {[%emt 00:00:01]} 50. Nf1 {[%clk
00:09:23]} {[%emt 00:01:35]} Kg5 {[%clk 01:21:51]} {[%emt 00:00:08]} 51. Kg3
{[%clk 00:09:41]} {[%emt 00:00:12]} Ba3 {[%clk 01:21:02]} {[%emt 00:01:19]} 52.
Ne3 {[%clk 00:09:21]} {[%emt 00:00:49]} Bb2 {[%clk 01:20:59]} {[%emt 00:00:33]}
53. Nd5 {[%clk 00:07:32]} {[%emt 00:02:21]} Bxd5 {[%clk 01:20:38]} {[%emt
00:00:51]} 54. exd5 {[%clk 00:08:01]} {[%emt 00:00:01]} e4 {[%clk 01:20:53]}
{[%emt 00:00:14]} 55. c4 {[%clk 00:07:29]} {[%emt 00:01:01]} Be5+ {[%clk
01:21:18]} {[%emt 00:00:05]} 56. Kg2 {[%clk 00:06:43]} {[%emt 00:01:17]} Bd6
{[%clk 01:21:43]} {[%emt 00:00:05]} 57. f3 {[%clk 00:05:42]} {[%emt 00:01:31]}
exf3+ {[%clk 01:21:55]} {[%emt 00:00:18]} 58. Kxf3 {[%clk 00:05:35]} {[%emt
00:00:38]} f5 {[%clk 01:22:20]} {[%emt 00:00:05]} 59. Ke3 {[%clk 00:04:09]}
{[%emt 00:01:56]} Bc5+ {[%clk 01:22:44]} {[%emt 00:00:06]} 60. Kd3 {[%clk
00:04:38]} {[%emt 00:00:01]} Kf6 {[%clk 01:22:51]} {[%emt 00:00:23]} 61. d6
{[%clk 00:04:43]} {[%emt 00:00:25]} Ke6 {[%clk 01:23:16]} {[%emt 00:00:05]} 62.
Bf3 {[%clk 00:04:00]} {[%emt 00:01:13]} Kxd6 {[%clk 01:23:38]} {[%emt
00:00:08]} 63. Bb7 {[%clk 00:04:24]} {[%emt 00:00:06]} Ke5 {[%clk 01:24:02]}
{[%emt 00:00:06]} 64. Ke2 {[%clk 00:04:46]} {[%emt 00:00:08]} g5 {[%clk
01:24:27]} {[%emt 00:00:05]} 65. Kf3 {[%clk 00:05:12]} {[%emt 00:00:04]} Kf6
{[%clk 01:24:51]} {[%emt 00:00:06]} 66. Kg3 {[%clk 00:05:00]} {[%emt 00:00:42]}
g4 {[%clk 01:25:08]} {[%emt 00:00:14]} 67. Kf4 {[%clk 00:04:36]} {[%emt
00:00:54]} Bd6+ {[%clk 01:25:33]} {[%emt 00:00:05]} 68. Ke3 {[%clk 00:05:03]}
{[%emt 00:00:02]} f4+ {[%clk 01:25:45]} {[%emt 00:00:18]} 69. Kd4 {[%clk
00:05:21]} {[%emt 00:00:12]} f3 {[%clk 01:25:52]} {[%emt 00:00:22]} 70. c5
{[%clk 00:05:47]} {[%emt 00:00:04]} Bxc5+ {[%clk 01:25:58]} {[%emt 00:00:24]}
71. Kxc5 {[%clk 00:02:29]} {[%emt 00:03:48]} Ke5 {[%clk 01:26:23]} {[%emt
00:00:05]} 72. Kc4 {[%clk 00:02:57]} {[%emt 00:00:02]} Kf4 {[%clk 01:26:46]}
{[%emt 00:00:07]} 0-1

[Event "2e tournoi de GMI du Barreau de Paris"]
[Site "Paris, France"]
[Date "2021.06.22"]
[Round "8.5"]
[White "Feller, Sebastien"]
[Black "David, Alberto"]
[Result "1/2-1/2"]
[TimeControl "90+30"]
[WhiteElo "2568"]
[BlackElo "2527"]

1. e4 {[%clk 01:30:56]} {[%emt 00:00:02]} c5 {[%clk 01:23:42]} {[%emt
00:07:18]} 2. Nf3 {[%clk 01:26:37]} {[%emt 00:04:49]} e6 {[%clk 01:24:07]}
{[%emt 00:00:05]} 3. c3 {[%clk 01:27:00]} {[%emt 00:00:08]} Nf6 {[%clk
01:24:27]} {[%emt 00:00:10]} 4. Bd3 {[%clk 01:27:24]} {[%emt 00:00:06]} d5
{[%clk 01:05:07]} {[%emt 00:19:50]} 5. e5 {[%clk 01:27:24]} {[%emt 00:00:29]}
Nfd7 {[%clk 01:05:32]} {[%emt 00:00:05]} 6. Bc2 {[%clk 01:27:15]} {[%emt
00:00:39]} c4 {[%clk 01:05:17]} {[%emt 00:00:45]} 7. O-O {[%clk 01:06:25]}
{[%emt 00:21:20]} Nc6 {[%clk 01:05:32]} {[%emt 00:00:15]} 8. Re1 {[%clk
00:58:17]} {[%emt 00:08:38]} g5 {[%clk 00:58:34]} {[%emt 00:07:28]} 9. Ba4
{[%clk 00:56:13]} {[%emt 00:02:35]} h6 {[%clk 00:55:38]} {[%emt 00:03:25]} 10.
d4 {[%clk 00:44:19]} {[%emt 00:12:24]} cxd3 {[%clk 00:55:23]} {[%emt 00:00:45]}
1/2-1/2

[Event "2e tournoi de GMI du Barreau de Paris"]
[Site "Paris, France"]
[Date "2021.06.22"]
[Round "8.4"]
[White "Travadon, Loic"]
[Black "Dardha, Daniel"]
[Result "1/2-1/2"]
[TimeControl "90+30"]
[WhiteElo "2415"]
[BlackElo "2503"]

1. d4 {[%clk 01:10:12]} {[%emt 00:20:47]} d5 {[%clk 01:30:35]} {[%emt
00:00:25]} 2. c4 {[%clk 01:10:34]} {[%emt 00:00:08]} e6 {[%clk 01:30:59]}
{[%emt 00:00:06]} 3. Nc3 {[%clk 01:11:00]} {[%emt 00:00:04]} c5 {[%clk
01:31:00]} {[%emt 00:00:28]} 4. cxd5 {[%clk 01:11:14]} {[%emt 00:00:17]} exd5
{[%clk 01:31:22]} {[%emt 00:00:08]} 5. Nf3 {[%clk 01:11:39]} {[%emt 00:00:06]}
Nf6 {[%clk 01:31:02]} {[%emt 00:00:50]} 6. Bf4 {[%clk 01:11:23]} {[%emt
00:00:45]} Nc6 {[%clk 01:30:50]} {[%emt 00:00:42]} 7. e3 {[%clk 01:11:27]}
{[%emt 00:00:27]} c4 {[%clk 01:30:19]} {[%emt 00:01:01]} 8. Be2 {[%clk
01:11:12]} {[%emt 00:00:45]} Bb4 {[%clk 01:30:12]} {[%emt 00:00:37]} 9. Nd2
{[%clk 01:11:01]} {[%emt 00:00:41]} O-O {[%clk 01:29:39]} {[%emt 00:01:03]} 10.
O-O {[%clk 01:10:28]} {[%emt 00:01:03]} h6 {[%clk 01:27:15]} {[%emt 00:02:53]}
11. a3 {[%clk 01:07:56]} {[%emt 00:03:02]} Bxc3 {[%clk 01:19:02]} {[%emt
00:08:44]} 12. bxc3 {[%clk 01:08:25]} {[%emt 00:00:02]} Bf5 {[%clk 01:19:23]}
{[%emt 00:00:09]} 13. h4 {[%clk 01:06:53]} {[%emt 00:02:01]} Ne4 {[%clk
01:13:56]} {[%emt 00:05:58]} 14. Nxe4 {[%clk 01:05:18]} {[%emt 00:02:05]} Bxe4
{[%clk 01:13:29]} {[%emt 00:00:56]} 15. h5 {[%clk 01:05:40]} {[%emt 00:00:08]}
b5 {[%clk 01:12:11]} {[%emt 00:01:48]} 16. f3 {[%clk 01:05:22]} {[%emt
00:00:48]} Bh7 {[%clk 01:12:33]} {[%emt 00:00:08]} 17. Rf2 {[%clk 01:05:27]}
{[%emt 00:00:26]} a5 {[%clk 01:10:26]} {[%emt 00:02:37]} 18. Qd2 {[%clk
01:01:06]} {[%emt 00:04:51]} Qe7 {[%clk 01:04:25]} {[%emt 00:06:30]} 19. e4
{[%clk 01:00:23]} {[%emt 00:01:14]} dxe4 {[%clk 01:01:27]} {[%emt 00:03:27]} 20.
a4 {[%clk 01:00:36]} {[%emt 00:00:17]} b4 {[%clk 00:56:58]} {[%emt 00:04:59]}
21. Bxc4 {[%clk 01:00:36]} {[%emt 00:00:30]} Rad8 {[%clk 00:51:55]} {[%emt
00:05:33]} 22. fxe4 {[%clk 00:59:26]} {[%emt 00:01:41]} Qxe4 {[%clk 00:42:51]}
{[%emt 00:09:33]} 23. Raf1 {[%clk 00:53:14]} {[%emt 00:06:42]} bxc3 {[%clk
00:39:28]} {[%emt 00:03:53]} 24. Qxc3 {[%clk 00:53:36]} {[%emt 00:00:09]} Qxd4
{[%clk 00:25:06]} {[%emt 00:14:51]} 25. Qc1 {[%clk 00:52:14]} {[%emt 00:01:52]}
Ne5 {[%clk 00:22:23]} {[%emt 00:03:14]} 26. Bxe5 {[%clk 00:52:10]} {[%emt
00:00:35]} Qxe5 {[%clk 00:22:47]} {[%emt 00:00:05]} 27. Bxf7+ {[%clk 00:51:58]}
{[%emt 00:00:43]} Kh8 {[%clk 00:23:11]} {[%emt 00:00:05]} 28. Qf4 {[%clk
00:51:05]} {[%emt 00:01:23]} Qc5 {[%clk 00:22:15]} {[%emt 00:01:26]} 29. Rc1
{[%clk 00:51:03]} {[%emt 00:00:32]} Qa3 {[%clk 00:19:43]} {[%emt 00:03:02]} 30.
Rc7 {[%clk 00:45:25]} {[%emt 00:06:07]} Rd1+ {[%clk 00:18:56]} {[%emt
00:01:17]} 31. Kh2 {[%clk 00:45:45]} {[%emt 00:00:11]} Qa1 {[%clk 00:17:08]}
{[%emt 00:02:18]} 32. Kg3 {[%clk 00:45:26]} {[%emt 00:00:49]} Rd4 {[%clk
00:14:10]} {[%emt 00:03:28]} 33. Qc1 {[%clk 00:45:45]} {[%emt 00:00:11]} Qxa4
{[%clk 00:13:28]} {[%emt 00:01:11]} 34. Bc4 {[%clk 00:42:08]} {[%emt 00:04:08]}
Qb4 {[%clk 00:10:56]} {[%emt 00:03:02]} 35. Rxf8+ {[%clk 00:35:21]} {[%emt
00:07:17]} Qxf8 {[%clk 00:11:24]} {[%emt 00:00:02]} 36. Be2 {[%clk 00:34:35]}
{[%emt 00:01:16]} a4 {[%clk 00:09:08]} {[%emt 00:02:46]} 37. Bf3 {[%clk
00:34:23]} {[%emt 00:00:42]} Bg8 {[%clk 00:08:23]} {[%emt 00:01:14]} 38. Rc8
{[%clk 00:34:03]} {[%emt 00:00:51]} Rd8 {[%clk 00:08:29]} {[%emt 00:00:23]} 39.
Rc6 {[%clk 00:34:09]} {[%emt 00:00:24]} a3 {[%clk 00:07:59]} {[%emt 00:01:01]}
40. Qc3 {[%clk 00:34:29]} {[%emt 00:00:10]} Rd6 {[%clk 00:07:21]} {[%emt
00:01:08]} 41. Rc8 {[%clk 00:33:22]} {[%emt 00:01:37]} Qf5 {[%clk 00:06:01]}
{[%emt 00:01:50]} 42. Qxa3 {[%clk 00:26:34]} {[%emt 00:07:18]} Qe5+ {[%clk
00:04:37]} {[%emt 00:01:53]} 43. Kh3 {[%clk 00:26:12]} {[%emt 00:00:52]} Kh7
{[%clk 00:04:00]} {[%emt 00:01:07]} 44. Rc5 {[%clk 00:25:22]} {[%emt 00:01:20]}
Be6+ {[%clk 00:03:51]} {[%emt 00:00:39]} 45. g4 {[%clk 00:25:50]} {[%emt
00:00:01]} Qf4 {[%clk 00:03:45]} {[%emt 00:00:36]} 46. Rc2 {[%clk 00:23:55]}
{[%emt 00:02:25]} Rd4 {[%clk 00:03:25]} {[%emt 00:00:50]} 47. Rg2 {[%clk
00:24:06]} {[%emt 00:00:19]} Bf5 {[%clk 00:02:58]} {[%emt 00:00:57]} 48. Be2
{[%clk 00:20:49]} {[%emt 00:03:47]} Re4 {[%clk 00:01:55]} {[%emt 00:01:34]} 49.
Qg3 {[%clk 00:20:18]} {[%emt 00:01:00]} Re3 {[%clk 00:02:06]} {[%emt 00:00:19]}
50. gxf5 {[%clk 00:20:43]} {[%emt 00:00:05]} Qxf5+ {[%clk 00:02:17]} {[%emt
00:00:19]} 51. Kh2 {[%clk 00:20:46]} {[%emt 00:00:27]} Rxg3 {[%clk 00:02:43]}
{[%emt 00:00:03]} 52. Rxg3 {[%clk 00:20:54]} {[%emt 00:00:23]} Qf2+ {[%clk
00:03:04]} {[%emt 00:00:08]} 53. Rg2 {[%clk 00:21:20]} {[%emt 00:00:04]} Qh4+
{[%clk 00:03:31]} {[%emt 00:00:03]} 54. Kg1 {[%clk 00:21:45]} {[%emt 00:00:05]}
g5 {[%clk 00:03:37]} {[%emt 00:00:25]} 55. hxg6+ {[%clk 00:22:11]} {[%emt
00:00:05]} Kg7 {[%clk 00:04:03]} {[%emt 00:00:03]} 56. Kf1 {[%clk 00:22:10]}
{[%emt 00:00:31]} Qf4+ {[%clk 00:04:02]} {[%emt 00:00:31]} 57. Ke1 {[%clk
00:22:06]} {[%emt 00:00:34]} h5 {[%clk 00:04:10]} {[%emt 00:00:22]} 58. Bxh5
{[%clk 00:22:16]} {[%emt 00:00:20]} Qh4+ {[%clk 00:04:30]} {[%emt 00:00:09]} 59.
Kf1 {[%clk 00:22:41]} {[%emt 00:00:05]} Qxh5 {[%clk 00:04:53]} {[%emt
00:00:07]} 60. Kg1 {[%clk 00:22:59]} {[%emt 00:00:12]} Qf3 {[%clk 00:05:10]}
{[%emt 00:00:13]} 61. Kh2 {[%clk 00:22:52]} {[%emt 00:00:38]} Qf1 {[%clk
00:05:15]} {[%emt 00:00:25]} 62. Rg1 {[%clk 00:22:57]} {[%emt 00:00:25]} Qf4+
{[%clk 00:05:31]} {[%emt 00:00:13]} 63. Rg3 {[%clk 00:23:21]} {[%emt 00:00:07]}
Qf2+ {[%clk 00:05:47]} {[%emt 00:00:15]} 64. Rg2 {[%clk 00:23:31]} {[%emt
00:00:20]} Qf3 {[%clk 00:05:46]} {[%emt 00:00:31]} 65. Kg1 {[%clk 00:23:54]}
{[%emt 00:00:06]} Qh3 {[%clk 00:05:29]} {[%emt 00:00:47]} 66. Kf2 {[%clk
00:24:10]} {[%emt 00:00:15]} Qh1 {[%clk 00:05:38]} {[%emt 00:00:21]} 67. Rg1
{[%clk 00:24:28]} {[%emt 00:00:12]} Qh4+ {[%clk 00:05:00]} {[%emt 00:01:07]} 68.
Rg3 {[%clk 00:24:43]} {[%emt 00:00:14]} Qxg3+ {[%clk 00:05:07]} {[%emt
00:00:23]} 69. Kxg3 {[%clk 00:25:08]} {[%emt 00:00:05]} Kxg6 {[%clk 00:05:35]}
{[%emt 00:00:03]} 1/2-1/2

[Event "2e tournoi de GMI du Barreau de Paris"]
[Site "Paris, France"]
[Date "2021.06.22"]
[Round "8.1"]
[White "Fedorchuk, Sergey A."]
[Black "Vlachos, Anatole"]
[Result "1-0"]
[TimeControl "90+30"]
[WhiteElo "2616"]
[BlackElo "2439"]

1. e4 {[%clk 01:30:55]} {[%emt 00:00:03]} e5 {[%clk 01:30:57]} {[%emt
00:00:03]} 2. Bc4 {[%clk 01:28:40]} {[%emt 00:02:45]} Nf6 {[%clk 01:31:09]}
{[%emt 00:00:18]} 3. d3 {[%clk 01:29:05]} {[%emt 00:00:05]} Bc5 {[%clk
01:29:32]} {[%emt 00:02:07]} 4. Nc3 {[%clk 01:28:09]} {[%emt 00:01:27]} O-O
{[%clk 01:29:28]} {[%emt 00:00:33]} 5. Bg5 {[%clk 01:20:58]} {[%emt 00:07:41]}
c6 {[%clk 01:27:58]} {[%emt 00:02:01]} 6. Nf3 {[%clk 01:17:22]} {[%emt
00:04:06]} h6 {[%clk 01:27:31]} {[%emt 00:00:57]} 7. Bh4 {[%clk 01:17:03]}
{[%emt 00:00:49]} b5 {[%clk 01:25:25]} {[%emt 00:02:36]} 8. Bb3 {[%clk
01:16:57]} {[%emt 00:00:35]} d6 {[%clk 01:25:16]} {[%emt 00:00:39]} 9. a4
{[%clk 01:04:20]} {[%emt 00:13:08]} b4 {[%clk 01:24:38]} {[%emt 00:01:08]} 10.
Ne2 {[%clk 01:04:29]} {[%emt 00:00:21]} a5 {[%clk 01:20:09]} {[%emt 00:04:59]}
11. O-O {[%clk 01:01:51]} {[%emt 00:03:07]} Bg4 {[%clk 01:12:18]} {[%emt
00:08:18]} 12. Nd2 {[%clk 01:00:47]} {[%emt 00:01:37]} g5 {[%clk 01:12:20]}
{[%emt 00:00:27]} 13. Bg3 {[%clk 01:01:09]} {[%emt 00:00:08]} Nh5 {[%clk
01:12:44]} {[%emt 00:00:07]} 14. Kh1 {[%clk 00:58:08]} {[%emt 00:03:31]} Nxg3+
{[%clk 01:12:59]} {[%emt 00:00:15]} 15. fxg3 {[%clk 00:55:34]} {[%emt
00:03:04]} Qd7 {[%clk 01:11:38]} {[%emt 00:01:51]} 16. Nf3 {[%clk 00:54:01]}
{[%emt 00:02:02]} Kg7 {[%clk 01:04:29]} {[%emt 00:07:37]} 17. h3 {[%clk
00:37:24]} {[%emt 00:17:09]} Bxf3 {[%clk 01:02:33]} {[%emt 00:02:26]} 18. Rxf3
{[%clk 00:37:43]} {[%emt 00:00:12]} f5 {[%clk 00:45:11]} {[%emt 00:17:49]} 19.
d4 {[%clk 00:35:26]} {[%emt 00:02:49]} Bb6 {[%clk 00:45:34]} {[%emt 00:00:08]}
20. dxe5 {[%clk 00:34:55]} {[%emt 00:01:01]} dxe5 {[%clk 00:46:02]} {[%emt
00:00:02]} 21. exf5 {[%clk 00:35:10]} {[%emt 00:00:15]} e4 {[%clk 00:46:18]}
{[%emt 00:00:13]} 22. Rf1 {[%clk 00:34:55]} {[%emt 00:00:45]} Rd8 {[%clk
00:44:39]} {[%emt 00:02:05]} 23. f6+ {[%clk 00:27:55]} {[%emt 00:07:34]} Kf8
{[%clk 00:44:33]} {[%emt 00:00:36]} 24. Nf4 {[%clk 00:09:26]} {[%emt 00:18:59]}
gxf4 {[%clk 00:44:11]} {[%emt 00:00:52]} 25. Qh5 {[%clk 00:09:49]} {[%emt
00:00:06]} Qh7 {[%clk 00:44:10]} {[%emt 00:00:31]} 26. Rxf4 {[%clk 00:10:15]}
{[%emt 00:00:04]} Nd7 {[%clk 00:40:12]} {[%emt 00:04:28]} 27. Raf1 {[%clk
00:10:19]} {[%emt 00:00:26]} Bd4 {[%clk 00:38:35]} {[%emt 00:02:05]} 28. Rxe4
{[%clk 00:05:22]} {[%emt 00:05:30]} Bxf6 {[%clk 00:38:44]} {[%emt 00:00:21]} 29.
Rxf6+ {[%clk 00:05:03]} {[%emt 00:00:49]} Nxf6 {[%clk 00:39:05]} {[%emt
00:00:09]} 30. Qc5+ {[%clk 00:05:31]} {[%emt 00:00:02]} Kg7 {[%clk 00:39:20]}
{[%emt 00:00:15]} 31. Re7+ {[%clk 00:05:58]} {[%emt 00:00:03]} Kh8 {[%clk
00:38:35]} {[%emt 00:01:14]} 32. Rxh7+ {[%clk 00:06:19]} {[%emt 00:00:09]} Kxh7
{[%clk 00:38:40]} {[%emt 00:00:26]} 33. Qe7+ {[%clk 00:06:41]} {[%emt
00:00:08]} Kg6 {[%clk 00:39:04]} {[%emt 00:00:06]} 34. Bf7+ {[%clk 00:07:01]}
{[%emt 00:00:10]} Kf5 {[%clk 00:38:59]} {[%emt 00:00:35]} 35. Qe6+ {[%clk
00:07:24]} {[%emt 00:00:08]} Kg5 {[%clk 00:39:26]} {[%emt 00:00:03]} 36. Qe5#
{[%clk 00:07:48]} {[%emt 00:00:06]} 1-0